bitfinex-derivatives/quotes_BTCF0:USTF0_20250830
["timestamp","ask_amount","ask_price","bid_price","bid_amount"]
[1756570411915,1.19875055,108790.0,108780.0,0.68946048]
[1756570412112,2.03671055,108790.0,108780.0,0.68946048]
[1756570412812,1.72597031,108790.0,108780.0,0.68946048]
[1756570413007,1.72593031,108790.0,108780.0,0.68946048]
[1756570415711,1.65997033,108790.0,108780.0,0.06798]
[1756570416012,1.65977033,108790.0,108780.0,0.68946048]
[1756570416212,1.97051057,108790.0,108780.0,0.68946048]
[1756570419317,1.13279057,108790.0,108780.0,0.68946048]
[1756570419515,1.97027057,108790.0,108780.0,0.68946048]
[1756570421013,1.97027057,108790.0,108780.0,0.65218048]
[1756570421818,2.03623055,108790.0,108780.0,0.68947048]
[1756570423917,2.03667737,108790.0,108780.0,0.68947048]
[1756570424821,1.31507737,108790.0,108780.0,0.68947048]
[1756570425018,2.03667737,108790.0,108780.0,0.68947048]
[1756570426015,2.03667737,108790.0,108780.0,0.0307]
[1756570426221,2.03667737,108790.0,108780.0,0.65218048]
[1756570427116,2.03667737,108790.0,108780.0,0.68947048]
[1756570428418,2.03667737,108790.0,108780.0,0.06799]
[1756570428619,2.03667737,108790.0,108780.0,0.68947048]
[1756570429824,1.72593713,108790.0,108780.0,0.68947048]
[1756570430023,1.19919737,108790.0,108780.0,0.68947048]
[1756570430225,2.03611737,108790.0,108780.0,0.68947048]
[1756570431028,1.72537713,108790.0,108780.0,0.06799]
[1756570431215,1.72537713,108790.0,108780.0,0.68947048]
[1756570431415,1.72514984,108790.0,108780.0,0.68947048]
[1756570431619,1.72514984,108790.0,108780.0,0.06799]
[1756570431824,1.72514984,108790.0,108780.0,0.7080841]
[1756570433526,1.72514984,108790.0,108780.0,0.08660362]
[1756570433728,1.72514984,108790.0,108780.0,0.7080841]
[1756570434422,2.03589008,108790.0,108780.0,0.7080841]
[1756570437725,1.72514984,108790.0,108780.0,0.7080841]
[1756570437929,2.03589008,108790.0,108780.0,0.7080841]
[1756570438129,1.72514984,108790.0,108780.0,0.7080841]
[1756570438330,2.03589008,108790.0,108780.0,0.7080841]
[1756570438532,1.72506984,108790.0,108780.0,0.7080841]
[1756570438732,1.72506984,108790.0,108780.0,0.08660362]
[1756570438932,1.72506984,108790.0,108780.0,0.7080841]
[1756570440833,1.72506984,108790.0,108780.0,0.08660362]
[1756570441027,1.72506984,108790.0,108780.0,0.7080841]
[1756570441224,1.72506984,108790.0,108780.0,0.06799]
[1756570441428,1.72506984,108790.0,108780.0,0.68769048]
[1756570442834,1.72506984,108790.0,108780.0,0.70658333]
[1756570444024,1.72506984,108790.0,108780.0,0.08510285]
[1756570444226,1.72506984,108790.0,108780.0,0.70658333]
[1756570444637,1.72506984,108790.0,108780.0,0.08510285]
[1756570444836,1.72506984,108790.0,108780.0,0.70658333]
[1756570448141,0.88822984,108790.0,108780.0,0.70658333]
[1756570448339,1.72862984,108790.0,108780.0,0.70658333]
[1756570448641,1.72858984,108790.0,108780.0,0.70658333]
[1756570453944,1.72818984,108790.0,108780.0,0.70658333]
[1756570454747,1.72806984,108790.0,108780.0,0.70658333]
[1756570455547,0.88822984,108790.0,108780.0,0.70658333]
[1756570455744,1.72798984,108790.0,108780.0,0.70658333]
[1756570460160,1.72798984,108790.0,108780.0,0.08510285]
[1756570460361,1.72798984,108790.0,108780.0,0.70658333]
[1756570460556,1.72798984,108790.0,108780.0,0.08510285]
[1756570460757,1.72798984,108790.0,108780.0,0.70658333]
[1756570461262,1.72798984,108790.0,108780.0,0.04806285]
[1756570461461,1.72798984,108790.0,108780.0,0.66954333]
[1756570461858,1.72798984,108790.0,108780.0,0.64696333]
[1756570462160,1.29897008,108790.0,108780.0,0.33622309]
[1756570462358,2.13873008,108790.0,108780.0,0.33622309]
[1756570463064,2.13873008,108790.0,108780.0,0.02548285]
[1756570463361,1.29897008,108790.0,108780.0,0.33622309]
[1756570463561,2.13873008,108790.0,108780.0,0.33622309]
[1756570463957,1.29897008,108790.0,108780.0,0.33622309]
[1756570464157,2.13865008,108790.0,108780.0,0.33622309]
[1756570465056,1.82790984,108790.0,108780.0,0.33622309]
[1756570465259,2.13865008,108790.0,108780.0,0.33622309]
[1756570466760,1.82790984,108790.0,108780.0,0.33622309]
[1756570466961,2.13865008,108790.0,108780.0,0.33622309]
[1756570468467,1.82790984,108790.0,108780.0,0.33622309]
[1756570468665,2.13865008,108790.0,108780.0,0.33622309]
[1756570469566,2.13865008,108790.0,108780.0,0.64696333]
[1756570471163,2.13865008,108790.0,108780.0,0.02548285]
[1756570471362,2.13865008,108790.0,108780.0,0.33622309]
[1756570472966,2.13865008,108790.0,108780.0,0.36090309]
[1756570474567,2.13865008,108790.0,108780.0,0.67164333]
[1756570475171,2.13865008,108790.0,108780.0,0.65275048]
[1756570475470,1.29897008,108790.0,108780.0,0.65275048]
[1756570475769,2.13757008,108790.0,108780.0,0.65275048]
[1756570476571,2.13757008,108790.0,108780.0,0.00659]
[1756570476768,2.13757008,108790.0,108780.0,0.62807048]
[1756570477069,2.13757008,108790.0,108780.0,0.31733024]
[1756570477469,2.13757008,108790.0,108780.0,0.00659]
[1756570477672,2.13857008,108790.0,108780.0,0.31533024]
[1756570477873,2.13857008,108790.0,108780.0,0.00459]
[1756570477874,2.0746101,108790.0,108780.0,0.00459]
[1756570478174,2.0746101,108790.0,108770.0,0.31074024]
[1756570478175,0.03634,108780.0,108770.0,0.31074024]
[1756570478375,1.20811528,108780.0,108770.0,0.31074024]
[1756570478671,1.22802172,108780.0,108770.0,0.31074024]
[1756570478971,0.91728148,108780.0,108770.0,0.31074024]
[1756570479172,0.88094148,108780.0,108760.0,0.36341634]
[1756570479373,1.61970345,108770.0,108760.0,0.38809634]
[1756570479569,1.66049989,108770.0,108760.0,0.38809634]
[1756570480575,1.66049989,108770.0,108760.0,0.69883658]
[1756570481074,1.66049989,108770.0,108760.0,0.69983658]
[1756570481373,1.66049989,108770.0,108760.0,0.0793561]
[1756570481572,1.66049989,108770.0,108760.0,0.70083658]
[1756570482475,1.34975965,108770.0,108760.0,0.0793561]
[1756570482677,1.34975965,108770.0,108760.0,0.70083658]
[1756570483777,1.66049989,108770.0,108760.0,0.70083658]
[1756570484374,1.66049989,108770.0,108760.0,0.64816048]
[1756570484580,1.71092668,108770.0,108760.0,0.31274024]
[1756570484771,1.77705148,108770.0,108760.0,0.31274024]
[1756570485080,1.85233676,108770.0,108760.0,0.31274024]
[1756570485379,1.85233676,108770.0,108760.0,0.33742024]
[1756570486378,1.85233676,108770.0,108760.0,0.02668]
[1756570486680,1.85233676,108770.0,108760.0,0.002]
[1756570486879,1.85233676,108770.0,108760.0,0.31274024]
[1756570488578,1.54159652,108770.0,108760.0,0.33742024]
[1756570488780,1.85233676,108770.0,108760.0,0.33742024]
[1756570489382,1.78621196,108770.0,108760.0,0.33742024]
[1756570491283,1.78621196,108770.0,108760.0,0.02668]
[1756570491691,1.78621196,108770.0,108760.0,0.33742024]
[1756570491886,0.94733196,108770.0,108760.0,0.33742024]
[1756570492186,1.68525196,108770.0,108760.0,0.68212048]
[1756570492788,0.84733196,108770.0,108760.0,0.68212048]
[1756570492986,1.37451172,108770.0,108760.0,0.68212048]
[1756570493286,1.68525196,108770.0,108760.0,0.06064]
[1756570493686,1.68525196,108770.0,108760.0,0.68212048]
[1756570494288,1.37451172,108770.0,108760.0,0.68212048]
[1756570495385,1.37451172,108770.0,108760.0,0.06064]
[1756570495686,1.29926644,108770.0,108760.0,0.68212048]
[1756570496081,0.45355793,108770.0,108760.0,1.24286072]
[1756570496286,0.43018793,108770.0,108760.0,1.24286072]
[1756570496484,0.38070644,108770.0,108760.0,1.24286072]
[1756570496682,0.01990644,108770.0,108760.0,1.24286072]
[1756570496887,0.51051223,108780.0,108770.0,0.05864]
[1756570497188,0.51051223,108780.0,108770.0,0.68012048]
[1756570500586,0.51051223,108780.0,108770.0,0.05864]
[1756570500787,0.51051223,108780.0,108770.0,0.68012048]
[1756570505385,0.46103074,108780.0,108770.0,0.68012048]
[1756570508594,0.46103074,108780.0,108770.0,0.36938024]
[1756570509095,0.51054405,108780.0,108770.0,0.38806428]
[1756570511188,0.53074283,108780.0,108770.0,0.38806428]
[1756570511999,0.51052425,108780.0,108770.0,0.07732404]
[1756570512197,1.23200473,108780.0,108770.0,0.32942428]
[1756570512493,1.18249142,108780.0,108770.0,0.32942428]
[1756570512792,0.87175118,108780.0,108770.0,0.32942428]
[1756570513091,0.87175118,108780.0,108770.0,0.01868404]
[1756570513495,0.87175118,108780.0,108770.0,0.32942428]
[1756570514098,0.87175118,108780.0,108770.0,0.01868404]
[1756570514296,0.87175118,108780.0,108770.0,0.32942428]
[1756570516705,1.39993094,108780.0,108770.0,0.35351428]
[1756570516997,1.71067118,108780.0,108770.0,0.35351428]
[1756570517392,1.71067118,108780.0,108770.0,0.04277404]
[1756570517597,1.71067118,108780.0,108770.0,0.35351428]
[1756570518001,1.71067118,108780.0,108770.0,0.01868404]
[1756570518198,1.71067118,108780.0,108770.0,0.32942428]
[1756570518901,1.71067118,108780.0,108770.0,0.01868404]
[1756570519097,1.71067118,108780.0,108770.0,0.32942428]
[1756570519601,1.39993094,108780.0,108770.0,0.32942428]
[1756570519802,1.71067118,108780.0,108770.0,0.32942428]
[1756570520102,1.39993094,108780.0,108770.0,0.32942428]
[1756570520302,1.71067118,108780.0,108770.0,0.32942428]
[1756570521600,1.77679598,108780.0,108770.0,0.32942428]
[1756570522101,1.77679598,108780.0,108770.0,0.01868404]
[1756570522302,1.71067118,108780.0,108770.0,0.32942428]
[1756570523201,1.71067118,108780.0,108770.0,0.01868404]
[1756570523399,1.71067118,108780.0,108770.0,0.32942428]
[1756570525304,1.77679598,108780.0,108770.0,0.32942428]
[1756570526299,1.77679598,108780.0,108770.0,0.01868404]
[1756570526300,2.33753622,108780.0,108770.0,0.01868404]
[1756570526496,0.02416,108760.0,108750.0,0.00459]
[1756570526698,1.62391753,108760.0,108750.0,0.33942024]
[1756570526903,1.64421969,108760.0,108750.0,0.37434024]
[1756570527102,1.33347945,108760.0,108750.0,0.37434024]
[1756570527910,1.33347945,108760.0,108750.0,0.37834024]
[1756570528111,1.5946424,108760.0,108750.0,0.37834024]
[1756570528504,0.44266216,108760.0,108750.0,0.37834024]
[1756570528703,1.29498123,108760.0,108750.0,0.37834024]
[1756570529110,1.34452167,108760.0,108750.0,0.37834024]
[1756570530611,1.34452167,108760.0,108750.0,0.0676]
[1756570530912,1.34452167,108760.0,108750.0,0.37834024]
[1756570531415,0.50140167,108760.0,108750.0,0.39698219]
[1756570531599,1.34432167,108760.0,108750.0,0.39698219]
[1756570532203,1.34432167,108760.0,108750.0,0.70772243]
[1756570533210,0.50140167,108760.0,108750.0,0.70772243]
[1756570533706,0.46400167,108760.0,108750.0,0.70772243]
[1756570534108,0.4548026,108760.0,108750.0,0.95772243]
[1756570534312,0.4888126,108760.0,108750.0,0.95772243]
[1756570534812,0.49794703,108760.0,108750.0,0.33624195]
[1756570535011,0.49794703,108760.0,108750.0,0.95772243]
[1756570537314,0.49794703,108760.0,108750.0,0.95313243]
[1756570538615,0.49794703,108760.0,108750.0,0.95772243]
[1756570551536,0.49794703,108760.0,108750.0,0.95672243]
[1756570551731,0.49794703,108760.0,108750.0,0.95472243]
[1756570552337,0.44840659,108760.0,108750.0,0.95372243]
[1756570558242,0.44840659,108760.0,108750.0,0.93508048]
[1756570559340,0.44840659,108760.0,108750.0,0.68508048]
[1756570565945,0.08760659,108760.0,108750.0,0.68508048]
[1756570566143,0.38110216,108760.0,108750.0,0.70384479]
[1756570566539,0.40407216,108760.0,108750.0,0.70384479]
[1756570566834,0.40407216,108760.0,108750.0,0.68508048]
[1756570567039,0.41310933,108760.0,108750.0,0.68508048]
[1756570567346,0.41310933,108760.0,108750.0,0.0636]
[1756570567546,0.44910933,108760.0,108750.0,0.68508048]
[1756570569345,0.44910933,108760.0,108750.0,1.52704048]
[1756570569850,0.44910933,108760.0,108750.0,0.68508048]
[1756570570152,0.44910933,108760.0,108750.0,1.52784048]
[1756570572752,0.08830933,108760.0,108750.0,1.52784048]
[1756570572952,0.44910933,108760.0,108750.0,1.52784048]
[1756570574348,0.44910933,108760.0,108750.0,0.68508048]
[1756570574554,0.44910933,108760.0,108750.0,1.52736048]
[1756570574750,0.08830933,108760.0,108750.0,1.52736048]
[1756570574952,0.44910933,108760.0,108750.0,1.52732048]
[1756570575547,0.41310933,108760.0,108750.0,1.52732048]
[1756570576056,0.44910933,108760.0,108750.0,1.52732048]
[1756570578158,0.44910933,108760.0,108750.0,0.68508048]
[1756570578360,0.44910933,108760.0,108750.0,1.52716048]
[1756570582859,0.44910933,108760.0,108750.0,0.0636]
[1756570583060,0.44910933,108760.0,108750.0,1.52656048]
[1756570583658,0.51523413,108760.0,108750.0,1.52656048]
[1756570585759,0.44910933,108760.0,108750.0,1.52656048]
[1756570589367,0.42880717,108760.0,108750.0,1.52656048]
[1756570589566,0.4494789,108760.0,108750.0,1.52656048]
[1756570589765,0.4494789,108760.0,108750.0,0.68508048]
[1756570589966,0.49914272,108760.0,108750.0,1.52612048]
[1756570591068,0.49914272,108760.0,108750.0,0.90464]
[1756570591272,0.49914272,108760.0,108750.0,1.52612048]
[1756570592365,0.49914272,108760.0,108750.0,0.68508048]
[1756570592669,0.49914272,108760.0,108750.0,1.52620048]
[1756570592670,0.4494789,108760.0,108750.0,1.52620048]
[1756570598768,0.4494789,108760.0,108750.0,1.52556048]
[1756570599273,0.4494789,108760.0,108750.0,0.90408]
[1756570599573,0.4494789,108760.0,108750.0,1.52556048]
[1756570604073,0.4494789,108760.0,108750.0,0.90408]
[1756570604372,0.4494789,108760.0,108750.0,1.52556048]
[1756570604673,0.40444173,108760.0,108750.0,1.52556048]
[1756570604871,0.38147173,108760.0,108750.0,1.54387061]
[1756570605873,0.39084834,108760.0,108750.0,1.54387061]
[1756570606773,0.38147173,108760.0,108750.0,1.54387061]
[1756570609771,0.02067173,108760.0,108750.0,1.54387061]
[1756570609979,0.38147173,108760.0,108750.0,1.54387061]
[1756570613280,0.40421173,108760.0,108750.0,1.54387061]
[1756570613878,0.38147173,108760.0,108750.0,1.54387061]
[1756570614075,0.08656863,108770.0,108750.0,2.83244225]
[1756570614272,0.02044383,108770.0,108760.0,0.99440072]
[1756570614669,0.02044383,108770.0,108760.0,1.82714362]
[1756570615077,0.02044383,108770.0,108760.0,1.79714362]
[1756570615275,0.02044383,108770.0,108760.0,1.80658171]
[1756570615782,0.02044383,108770.0,108760.0,1.81117171]
[1756570616280,0.02244383,108770.0,108760.0,1.81117171]
[1756570616783,0.02044383,108770.0,108760.0,1.81117171]
[1756570616976,0.02044383,108770.0,108760.0,2.06117171]
[1756570617380,0.02044383,108770.0,108760.0,2.90217171]
[1756570617580,0.02044383,108770.0,108760.0,2.57217171]
[1756570619180,0.02044383,108770.0,108760.0,2.32217171]
[1756570619884,0.02019878,108780.0,108770.0,0.06218]
[1756570620084,0.02019878,108780.0,108770.0,1.44713512]
[1756570620574,0.02019878,108780.0,108770.0,1.79713512]
[1756570620985,0.02219878,108780.0,108770.0,1.79713512]
[1756570621390,0.02219878,108780.0,108770.0,1.81577751]
[1756570621686,0.42036,108800.0,108790.0,0.05779]
[1756570621889,0.42963818,108800.0,108790.0,1.52019048]
[1756570622382,0.45045066,108800.0,108790.0,1.52027048]
[1756570622577,0.45045066,108800.0,108790.0,1.53915851]
[1756570622778,0.05441066,108800.0,108790.0,1.53915851]
[1756570622998,0.03209066,108800.0,108790.0,2.21069875]
[1756570623178,0.02581248,108800.0,108790.0,1.05895851]
[1756570623381,0.02581248,108800.0,108790.0,1.90179851]
[1756570624885,0.41998067,108800.0,108790.0,1.54179851]
[1756570625081,0.41798067,108800.0,108790.0,1.54179851]
[1756570625278,0.45208067,108800.0,108790.0,0.69815851]
[1756570625585,0.44908067,108800.0,108790.0,1.54191851]
[1756570625774,0.44908067,108800.0,108790.0,1.54291851]
[1756570626188,0.46938304,108800.0,108790.0,1.54291851]
[1756570626389,0.46938304,108800.0,108790.0,1.54307851]
[1756570626589,0.46938304,108800.0,108790.0,1.54335851]
[1756570628287,0.46938304,108800.0,108790.0,0.70374851]
[1756570628483,0.46938304,108800.0,108790.0,1.54798851]
[1756570629086,0.46938304,108800.0,108790.0,1.54782851]
[1756570630180,0.10858304,108800.0,108790.0,1.54782851]
[1756570630583,0.46938304,108800.0,108790.0,1.54782851]
[1756570632287,0.10858304,108800.0,108790.0,1.54782851]
[1756570632483,0.46938304,108800.0,108790.0,1.54794851]
[1756570632880,0.10858304,108800.0,108790.0,1.54794851]
[1756570633376,0.46938304,108800.0,108790.0,1.54770851]
[1756570636589,0.46938304,108800.0,108790.0,0.08226803]
[1756570636892,0.46938304,108800.0,108790.0,1.54826851]
[1756570637188,0.10858304,108800.0,108790.0,1.54826851]
[1756570637483,0.46938304,108800.0,108790.0,1.55018851]
[1756570637685,0.10858304,108800.0,108790.0,1.55018851]
[1756570639984,0.07448304,108800.0,108790.0,1.55018851]
[1756570640378,0.06543485,108800.0,108790.0,1.55018851]
[1756570642785,0.07474758,108800.0,108790.0,1.55018851]
[1756570642990,0.12414608,108800.0,108790.0,1.55018851]
[1756570643390,0.11483335,108800.0,108790.0,1.55018851]
[1756570643689,0.09051335,108800.0,108790.0,2.22172875]
[1756570644183,0.09051335,108800.0,108790.0,1.91098851]
[1756570644484,0.09051335,108800.0,108790.0,2.22172875]
[1756570645384,0.09051335,108800.0,108790.0,1.91098851]
[1756570645589,0.09051335,108800.0,108790.0,1.06454851]
[1756570645789,0.09051335,108800.0,108790.0,1.91126851]
[1756570650892,0.12461335,108800.0,108790.0,1.06454851]
[1756570651093,0.14893335,108800.0,108790.0,0.92854803]
[1756570651402,0.50973335,108800.0,108790.0,1.54982851]
[1756570651796,0.46033485,108800.0,108790.0,1.54982851]
[1756570652785,0.46033485,108800.0,108790.0,1.54978851]
[1756570655099,0.09953485,108800.0,108790.0,1.54978851]
[1756570655400,0.46033485,108800.0,108790.0,1.54978851]
[1756570657101,0.46033485,108800.0,108790.0,0.92830803]
[1756570657302,0.46033485,108800.0,108790.0,1.54978851]
[1756570658398,0.46033485,108800.0,108790.0,0.92830803]
[1756570658598,0.46033485,108800.0,108790.0,0.70374851]
[1756570658799,0.46033485,108800.0,108790.0,1.54930851]
[1756570659101,0.71033485,108800.0,108790.0,0.08226803]
[1756570659296,0.71033485,108800.0,108790.0,1.23896827]
[1756570659497,0.71033485,108800.0,108790.0,0.37412024]
[1756570659802,0.77645965,108800.0,108790.0,1.22020024]
[1756570661414,0.71033485,108800.0,108790.0,1.22020024]
[1756570662515,0.75997539,108800.0,108790.0,1.22020024]
[1756570662812,0.75997539,108800.0,108790.0,1.21988024]
[1756570664916,0.75997539,108800.0,108790.0,0.37412024]
[1756570665119,0.75997539,108800.0,108790.0,1.21972024]
[1756570665319,0.75997539,108800.0,108790.0,1.53046048]
[1756570665527,0.75997539,108800.0,108790.0,1.53038048]
[1756570666418,0.75997539,108800.0,108790.0,0.68486048]
[1756570666620,0.75997539,108800.0,108790.0,1.53038048]
[1756570668426,0.75997539,108800.0,108790.0,1.53118048]
[1756570668624,0.75997539,108800.0,108790.0,1.53086048]
[1756570669423,0.75997539,108800.0,108790.0,1.53082048]
[1756570669825,0.75997539,108800.0,108790.0,1.53074048]
[1756570670523,0.75997539,108800.0,108790.0,1.53070048]
[1756570671126,0.75934251,108800.0,108790.0,1.53070048]
[1756570671329,0.75934251,108800.0,108790.0,0.68486048]
[1756570671824,0.75934251,108800.0,108790.0,1.53042048]
[1756570672927,0.75934251,108800.0,108790.0,0.68486048]
[1756570673122,0.75934251,108800.0,108790.0,1.53042048]
[1756570673928,0.70970197,108800.0,108790.0,1.53018048]
[1756570674727,0.68952237,108800.0,108790.0,1.53018048]
[1756570675629,0.68952237,108800.0,108790.0,1.52990048]
[1756570677631,0.65542237,108800.0,108790.0,1.52990048]
[1756570677832,0.38110237,108800.0,108790.0,1.93255792]
[1756570678027,0.38110237,108800.0,108790.0,1.84064072]
[1756570678229,0.38110237,108800.0,108790.0,2.20064072]
[1756570678526,0.38110237,108800.0,108790.0,2.43064072]
[1756570678731,0.38110237,108800.0,108790.0,1.77990048]
[1756570678934,0.02030237,108800.0,108790.0,2.14070048]
[1756570679327,0.02030237,108800.0,108790.0,1.89070048]
[1756570682135,0.02030237,108800.0,108790.0,1.89986797]
[1756570682634,0.02030237,108800.0,108790.0,1.89070048]
[1756570683439,0.02030237,108800.0,108790.0,1.89026048]
[1756570683626,0.04964054,108800.0,108790.0,1.89026048]
[1756570684534,0.06994291,108800.0,108790.0,1.89026048]
[1756570684832,0.04964054,108800.0,108790.0,1.89026048]
[1756570685336,0.06994291,108800.0,108790.0,1.89026048]
[1756570685933,0.04964054,108800.0,108790.0,1.89026048]
[1756570686135,0.06994291,108800.0,108790.0,1.89026048]
[1756570686339,0.04964054,108800.0,108790.0,1.89026048]
[1756570686842,0.06994291,108800.0,108790.0,2.29291792]
[1756570687038,0.04964054,108800.0,108790.0,2.29291792]
[1756570687329,0.06994291,108800.0,108790.0,2.62291792]
[1756570687531,0.06994291,108800.0,108790.0,2.31217768]
[1756570687727,0.04964054,108800.0,108790.0,2.31217768]
[1756570688034,0.06994291,108800.0,108790.0,2.31217768]
[1756570688332,0.06994291,108800.0,108790.0,2.62291792]
[1756570688537,0.06994291,108800.0,108790.0,2.20136072]
[1756570688728,0.04964054,108800.0,108790.0,2.20136072]
[1756570688927,0.06994291,108800.0,108790.0,1.04566048]
[1756570689129,0.04964054,108800.0,108790.0,1.04566048]
[1756570689435,0.06994291,108800.0,108790.0,1.89050048]
[1756570689625,0.04964054,108800.0,108790.0,1.89050048]
[1756570689830,0.06994291,108800.0,108790.0,1.89050048]
[1756570690025,0.04964054,108800.0,108790.0,1.89050048]
[1756570690428,0.06994291,108800.0,108790.0,1.89050048]
[1756570690732,0.04964054,108800.0,108790.0,1.89050048]
[1756570690931,0.06994291,108800.0,108790.0,1.89050048]
[1756570691135,0.04964054,108800.0,108790.0,1.04566048]
[1756570691330,0.45325291,108800.0,108790.0,1.52954048]
[1756570692139,0.09245291,108800.0,108790.0,1.52954048]
[1756570693539,0.09245291,108800.0,108790.0,1.52926048]
[1756570695136,0.06994291,108800.0,108790.0,1.52926048]
[1756570695336,0.02030237,108800.0,108790.0,2.84746812]
[1756570695541,0.07969993,108810.0,108790.0,2.84746812]
[1756570695742,0.07969993,108810.0,108800.0,1.31683072]
[1756570696039,0.07969993,108810.0,108800.0,1.35327072]
[1756570696741,0.07036159,108810.0,108800.0,1.35327072]
[1756570697243,0.07136159,108810.0,108800.0,1.35786072]
[1756570697442,0.07236159,108810.0,108800.0,1.35786072]
[1756570698445,0.07236159,108810.0,108800.0,1.42961824]
[1756570698644,0.09487159,108810.0,108800.0,1.42961824]
[1756570700147,0.04523105,108810.0,108800.0,1.42961824]
[1756570704242,0.02272105,108810.0,108800.0,1.42961824]
[1756570704945,0.02272105,108810.0,108800.0,2.27393824]
[1756570706150,0.02272105,108810.0,108800.0,2.74413698]
[1756570706347,0.43879039,108830.0,108820.0,0.06025]
[1756570706547,0.43879039,108830.0,108820.0,1.85534372]
[1756570706849,0.08705721,108830.0,108820.0,1.85534372]
[1756570707439,0.46756096,108830.0,108820.0,1.85534372]
[1756570707644,0.46756096,108830.0,108820.0,1.54460348]
[1756570707843,0.47156096,108830.0,108820.0,1.54460348]
[1756570708347,0.47456096,108830.0,108820.0,1.54460348]
[1756570709449,0.47456096,108830.0,108820.0,1.23354332]
[1756570710549,0.47456096,108830.0,108820.0,0.38946332]
[1756570710747,0.47456096,108830.0,108820.0,1.23346332]
[1756570711251,0.47456096,108830.0,108820.0,1.21467032]
[1756570711650,0.47456096,108830.0,108820.0,0.37067032]
[1756570711951,0.47456096,108830.0,108820.0,1.21463032]
[1756570714454,0.5242015,108830.0,108820.0,1.21463032]
[1756570717456,0.5242015,108830.0,108820.0,1.21383032]
[1756570722059,0.5242015,108830.0,108820.0,0.37067032]
[1756570722259,0.5242015,108830.0,108820.0,1.21351032]
[1756570723059,0.5242015,108830.0,108820.0,0.37067032]
[1756570723458,0.5242015,108830.0,108820.0,1.21786032]
[1756570726659,0.5212015,108830.0,108820.0,1.21786032]
[1756570726862,0.5232015,108830.0,108820.0,1.21786032]
[1756570727165,0.5192015,108830.0,108820.0,1.21786032]
[1756570727365,0.5212015,108830.0,108820.0,1.21786032]
[1756570731267,0.5212015,108830.0,108820.0,1.52831424]
[1756570740377,0.5212015,108830.0,108820.0,0.90744]
[1756570740571,0.5212015,108830.0,108820.0,1.52831424]
[1756570741683,0.5212015,108830.0,108820.0,1.83875136]
[1756570742780,0.4637015,108830.0,108820.0,1.83875136]
[1756570743185,0.4979915,108830.0,108820.0,1.83875136]
[1756570743584,0.4637015,108830.0,108820.0,1.83875136]
[1756570744588,0.4627015,108830.0,108820.0,1.83875136]
[1756570745585,0.4607015,108830.0,108820.0,1.83875136]
[1756570749189,0.3608,108840.0,108830.0,0.05926]
[1756570749487,0.38147017,108840.0,108830.0,0.99057136]
[1756570749687,0.02067017,108840.0,108830.0,1.35137136]
[1756570750086,0.02067017,108840.0,108830.0,1.70137136]
[1756570750483,0.02267017,108840.0,108830.0,1.72014776]
[1756570750790,0.02467017,108840.0,108830.0,1.72473776]
[1756570751986,0.3608,108850.0,108840.0,0.091875]
[1756570752189,0.02052158,108860.0,108850.0,0.05579]
[1756570752488,0.02052158,108860.0,108850.0,1.03746424]
[1756570753189,0.02352158,108860.0,108850.0,1.03746424]
[1756570753588,0.02352158,108860.0,108850.0,1.87878424]
[1756570753781,0.02352158,108860.0,108850.0,1.89709261]
[1756570753782,0.007,108860.0,108850.0,1.89709261]
[1756570754191,0.01635467,108860.0,108850.0,1.89709261]
[1756570754384,0.007,108860.0,108850.0,1.89709261]
[1756570755492,0.007,108860.0,108850.0,1.05589261]
[1756570755688,0.007,108860.0,108850.0,1.89713261]
[1756570756591,0.007,108860.0,108850.0,1.89705261]
[1756570758194,0.01604149,108860.0,108850.0,1.89705261]
[1756570759889,0.01604149,108860.0,108850.0,1.05589261]
[1756570760089,0.007,108860.0,108850.0,1.89677261]
[1756570761287,0.0264253,108860.0,108850.0,1.89677261]
[1756570765291,0.0264253,108860.0,108850.0,1.05589261]
[1756570765491,0.3872253,108860.0,108850.0,1.53553261]
[1756570765800,0.4441153,108860.0,108850.0,1.51690424]
[1756570766798,0.4441153,108860.0,108850.0,1.52149424]
[1756570768101,0.4441153,108860.0,108850.0,0.68125424]
[1756570768401,0.4441153,108860.0,108850.0,1.52133424]
[1756570769101,0.4441153,108860.0,108850.0,1.52125424]
[1756570777804,0.4441153,108860.0,108850.0,1.52117424]
[1756570779805,0.4441153,108860.0,108850.0,0.68125424]
[1756570780006,0.4441153,108860.0,108850.0,1.52113424]
[1756570780211,0.49351926,108860.0,108850.0,1.52113424]
[1756570780703,0.49351926,108860.0,108850.0,0.68125424]
[1756570780901,0.49351926,108860.0,108850.0,1.52113424]
[1756570782309,0.49351926,108860.0,108850.0,0.68125424]
[1756570782503,0.49351926,108860.0,108850.0,1.52113424]
[1756570782809,0.4441153,108860.0,108850.0,1.52113424]
[1756570788714,0.4441153,108860.0,108850.0,0.90026]
[1756570788915,0.4441153,108860.0,108850.0,1.52113424]
[1756570791312,0.0264253,108860.0,108850.0,2.19237136]
[1756570793911,0.07582926,108860.0,108850.0,2.19237136]
[1756570794117,0.07282926,108860.0,108850.0,2.19237136]
[1756570794317,0.07382926,108860.0,108850.0,2.19237136]
[1756570795214,0.07082926,108860.0,108850.0,2.19237136]
[1756570799319,0.49131926,108860.0,108850.0,1.52173424]
[1756570799519,0.49131926,108860.0,108850.0,0.68125424]
[1756570799720,0.49131926,108860.0,108850.0,1.52157424]
[1756570801427,0.49131926,108860.0,108850.0,0.68125424]
[1756570801725,0.49131926,108860.0,108850.0,1.52181424]
[1756570802321,0.49131926,108860.0,108850.0,0.68125424]
[1756570802528,1.15175638,108860.0,108850.0,1.15594712]
[1756570802723,1.15175638,108860.0,108850.0,0.00459]
[1756570802724,1.16847722,108860.0,108850.0,0.00459]
[1756570802925,1.16847722,108860.0,108840.0,0.8733]
[1756570803126,0.73102712,108850.0,108840.0,0.36761712]
[1756570803426,1.12639724,108850.0,108840.0,0.31043712]
[1756570803627,1.37639724,108850.0,108840.0,0.31043712]
[1756570804329,1.37639724,108850.0,108840.0,0.62087424]
[1756570805229,1.42593315,108850.0,108840.0,0.62087424]
[1756570805727,1.11549603,108850.0,108840.0,0.62087424]
[1756570805928,1.42593315,108850.0,108840.0,0.62087424]
[1756570806234,1.42593315,108850.0,108840.0,0.64571424]
[1756570806729,1.37639724,108850.0,108840.0,0.64571424]
[1756570807026,1.37639724,108850.0,108840.0,0.62087424]
[1756570807225,1.52590261,108850.0,108840.0,0.62087424]
[1756570807422,1.47639724,108850.0,108840.0,0.62087424]
[1756570807623,1.47639724,108850.0,108840.0,0.31043712]
[1756570808129,2.36702339,108850.0,108840.0,0.31043712]
[1756570808330,2.3670123,108850.0,108840.0,0.31043712]
[1756570809725,2.38364204,108850.0,108840.0,0.31043712]
[1756570810330,2.21751724,108850.0,108840.0,0.31043712]
[1756570814037,1.37639724,108850.0,108840.0,0.62087424]
[1756570814336,2.21723724,108850.0,108840.0,0.62087424]
[1756570814832,1.37639724,108850.0,108840.0,0.62087424]
[1756570815038,1.95605969,108850.0,108840.0,0.62087424]
[1756570815233,1.11541969,108850.0,108840.0,0.62087424]
[1756570815434,1.11541969,108850.0,108840.0,0.67805424]
[1756570815435,1.95605969,108850.0,108840.0,0.67805424]
[1756570815835,1.11541969,108850.0,108840.0,0.67805424]